fUST/lending_fUST_20260314
["ID","MTS","AMOUNT","RATE_DAILY","PERIOD"]
[408350880,1773481766159,-113.3220887,6.091e-05,2]
[408350881,1773481802506,161.19,2e-05,2]
[408350903,1773481832434,-1421.2607696,6.03e-05,2]
[408350906,1773481832448,-1258.00633618,6.03e-05,2]
[408350907,1773481832457,-507.0,6.03e-05,2]
[408350909,1773481832467,-150.59579791,6.091e-05,2]
[408350911,1773481832477,-392.4709743,7.4e-05,2]
[408350913,1773481832486,-298.84819513,8.091e-05,2]
[408350915,1773481832495,-167.6503843,8.37e-05,2]
[408350917,1773481832504,-392.4709743,8.374e-05,2]
[408350919,1773481832513,-392.4709743,9.349e-05,2]
[408350921,1773481832523,-333.77850365,0.00010091,2]
[408350922,1773481832532,-1873.15318622,0.000101,2]
[408350924,1773481832541,-185.36158893,0.00010243,2]
[408350926,1773481832551,-505.168,0.00010243,2]
[408350928,1773481832560,-237.63900032,0.00010323,2]
[408350931,1773481832572,-154.83197398,0.00010323,2]
[408350933,1773481832582,-151.0,0.00011,2]
[408350935,1773481832591,-151.0,0.000111,2]
[408350937,1773481832601,-151.0,0.000111,2]
[408350938,1773481832610,-43.1513955,0.000111,2]
[408351070,1773481838578,-49956.8486045,0.000111,2]
[408351072,1773481838588,-151.0,0.000112,2]
[408351074,1773481838597,-151.0,0.000113,2]
[408351076,1773481838607,-151.0,0.000113,2]
[408351078,1773481838616,-151.0,0.000114,2]
[408351080,1773481838626,-150.0,0.00011498,2]
[408351082,1773481838636,-150.0,0.00011498,2]
[408351084,1773481838647,-212.70463827,0.00011498,2]
[408351086,1773481838656,-150.0,0.00011498,2]
[408351088,1773481838666,-151.0,0.000115,2]
[408351090,1773481838675,-150.0,0.00011553,2]
[408351092,1773481838684,-150.0,0.00011553,2]
[408351094,1773481838693,-150.0,0.00011553,2]
[408351096,1773481838704,-151.0,0.000116,2]
[408351098,1773481838713,-151.0,0.000116,2]
[408351100,1773481838722,-305.66984131,0.000116,2]
[408351102,1773481838732,-150.0,0.00011608,2]
[408351104,1773481838741,-200.0,0.00011608,2]
[408351105,1773481838753,-200.0,0.00011608,2]
[408351106,1773481838763,-219.0,0.00011662,2]
[408351107,1773481838773,-500.0,0.00011673,2]
[408351108,1773481838783,-500.93133988,0.00011673,2]
[408351109,1773481838794,-160.0,0.00011673,2]
[408351110,1773481838803,-282.05564888,0.00011673,2]
[408351111,1773481838813,-500.79915999,0.00011673,2]
[408351112,1773481838822,-501.18089774,0.00011673,2]
[408351113,1773481838831,-500.93565698,0.00011673,2]
[408351114,1773481838841,-501.55993991,0.00011673,2]
[408351115,1773481838851,-212.21983472,0.00011673,2]
[408351116,1773481839086,-502.55198746,0.00011673,2]
[408351117,1773481839096,-501.06223277,0.00011673,2]
[408351118,1773481839106,-500.0,0.00011698,2]
[408351119,1773481839115,-500.0,0.00011698,2]
[408351120,1773481839125,-500.0,0.00011698,2]
[408351121,1773481839135,-500.0,0.00011698,2]
[408351122,1773481839145,-500.0,0.00011698,2]
[408351123,1773481839155,-500.0,0.00011698,2]
[408351124,1773481839164,-500.0,0.00011698,2]
[408351125,1773481839174,-500.0,0.00011698,2]
[408351126,1773481839184,-500.0,0.00011698,2]
[408351127,1773481839193,-500.0,0.00011698,2]
[408351128,1773481839203,-500.0,0.00011698,2]
[408351129,1773481839212,-500.0,0.00011698,2]
[408351130,1773481839222,-500.0,0.00011698,2]
[408351131,1773481839232,-500.0,0.00011698,2]
[408351132,1773481839241,-500.0,0.00011698,2]
[408351133,1773481839251,-500.0,0.00011698,2]
[408351134,1773481839260,-500.0,0.00011698,2]
[408351135,1773481839271,-500.0,0.00011698,2]
[408351136,1773481839280,-500.0,0.00011698,2]
[408351137,1773481839290,-500.0,0.00011698,2]
[408351138,1773481839300,-500.0,0.00011698,2]
[408351139,1773481839310,-500.0,0.00011698,2]
[408351140,1773481839319,-500.0,0.00011698,2]
[408351141,1773481839329,-500.0,0.00011698,2]
[408351142,1773481839342,-500.0,0.00011698,2]
[408351143,1773481839352,-500.0,0.00011698,2]
[408351144,1773481839365,-500.0,0.00011698,2]
[408351145,1773481839374,-500.0,0.00011698,2]
[408351146,1773481839384,-500.0,0.00011698,2]
[408351147,1773481839395,-500.0,0.00011698,2]
[408351148,1773481839408,-500.0,0.00011698,2]
[408351149,1773481839419,-521.66860168,0.00011698,2]
[408351150,1773481839430,-177.45326331,0.00011698,2]
[408351151,1773481839441,-500.0,0.00011698,2]
[408351152,1773481839450,-500.0,0.00011698,2]
[408351153,1773481839461,-436.90816747,0.00011698,2]
[408351154,1773481839472,-500.0,0.00011698,2]
[408351155,1773481839482,-500.0,0.00011698,2]
[408351156,1773481839492,-500.0,0.00011698,2]
[408351157,1773481839503,-500.0,0.00011698,2]
[408351158,1773481839514,-500.0,0.00011698,2]
[408351159,1773481839525,-644.67731111,0.00011698,2]
[408351160,1773481839536,-500.0,0.00011698,2]
[408351161,1773481839546,-500.0,0.00011698,2]
[408351162,1773481839556,-500.0,0.00011698,2]
[408351163,1773481839565,-500.0,0.00011698,2]
[408351164,1773481839576,-500.0,0.00011698,2]
[408351165,1773481839586,-500.0,0.00011698,2]
[408351166,1773481839596,-500.0,0.00011698,2]
[408351167,1773481839606,-500.0,0.00011698,2]
[408351168,1773481839616,-500.0,0.00011698,2]
[408351169,1773481839625,-500.0,0.00011698,2]
[408351170,1773481839635,-500.0,0.00011698,2]
[408351171,1773481839645,-500.0,0.00011698,2]
[408351172,1773481839655,-500.0,0.00011698,2]
[408351173,1773481839664,-500.0,0.00011698,2]
[408351174,1773481839675,-500.0,0.00011698,2]
[408351175,1773481839685,-500.0,0.00011698,2]
[408351176,1773481839695,-500.0,0.00011698,2]
[408351177,1773481839704,-500.0,0.00011698,2]
[408351178,1773481839718,-500.0,0.00011698,2]
[408351179,1773481839728,-500.0,0.00011698,2]
[408351180,1773481839739,-500.0,0.00011698,2]
[408351181,1773481839749,-500.0,0.00011698,2]
[408351182,1773481839759,-500.0,0.00011698,2]
[408351183,1773481839769,-500.0,0.00011698,2]
[408351184,1773481839780,-500.0,0.00011698,2]
[408351185,1773481839790,-500.0,0.00011698,2]
[408351186,1773481839800,-500.0,0.00011698,2]
[408351187,1773481839810,-500.0,0.00011698,2]
[408351188,1773481839820,-500.0,0.00011698,2]
[408351189,1773481839829,-500.0,0.00011698,2]
[408351190,1773481839839,-500.0,0.00011698,2]
[408351191,1773481839849,-521.19765688,0.00011698,2]
[408351192,1773481839859,-500.0,0.00011698,2]
[408351193,1773481839869,-500.0,0.00011698,2]
[408351194,1773481839879,-500.0,0.00011698,2]
[408351195,1773481839889,-500.0,0.00011698,2]
[408351196,1773481839899,-500.0,0.00011698,2]
[408351197,1773481839909,-500.0,0.00011698,2]
[408351198,1773481839919,-500.0,0.00011698,2]
[408351199,1773481839929,-500.0,0.00011698,2]
[408351200,1773481839938,-500.0,0.00011698,2]
[408351201,1773481839948,-500.0,0.00011698,2]
[408351202,1773481839958,-500.0,0.00011698,2]
[408351203,1773481839968,-500.0,0.00011698,2]
[408351204,1773481839978,-642.43507441,0.00011698,2]
[408351205,1773481839988,-500.0,0.00011698,2]
[408351206,1773481839998,-500.0,0.00011698,2]
[408351207,1773481840008,-500.0,0.00011698,2]
[408351208,1773481840019,-500.0,0.00011698,2]
[408351209,1773481840028,-500.0,0.00011698,2]
[408351210,1773481840038,-500.0,0.00011698,2]
[408351211,1773481840048,-500.0,0.00011698,2]
[408351212,1773481840059,-500.0,0.00011698,2]
[408351213,1773481840068,-500.0,0.00011698,2]
[408351214,1773481840077,-500.0,0.00011698,2]
[408351215,1773481840087,-500.0,0.00011698,2]
[408351216,1773481840096,-500.0,0.00011698,2]
[408351217,1773481840106,-500.0,0.00011698,2]
[408351218,1773481840115,-500.0,0.00011698,2]
[408351219,1773481840124,-500.0,0.00011698,2]
[408351220,1773481840133,-500.0,0.00011698,2]
[408351221,1773481840143,-500.0,0.00011698,2]
[408351222,1773481840152,-500.0,0.00011698,2]
[408351223,1773481840161,-500.0,0.00011698,2]
[408351224,1773481840170,-500.0,0.00011698,2]
[408351225,1773481840180,-500.0,0.00011698,2]
[408351226,1773481840189,-500.0,0.00011698,2]
[408351227,1773481840198,-500.0,0.00011698,2]
[408351228,1773481840208,-500.0,0.00011698,2]
[408351229,1773481840217,-500.0,0.00011698,2]
[408351230,1773481840226,-500.0,0.00011698,2]
[408351231,1773481840235,-199.15945272,0.00011698,2]
[408351232,1773481840244,-1000000.0,0.000117,2]
[408351233,1773481840254,-307.94137656,0.000117,2]
[408351234,1773481840263,-151.0,0.000117,2]
[408351235,1773481840274,-151.0,0.000117,2]
[408351236,1773481840285,-151.0,0.000117,2]
[408351237,1773481840295,-151.0,0.000117,2]
[408351238,1773481840304,-151.0,0.000117,2]
[408351239,1773481840314,-151.0,0.000117,2]
[408351240,1773481840323,-151.0,0.000117,2]
[408351241,1773481840332,-151.0,0.000117,2]
[408351242,1773481840342,-151.0,0.000117,2]
[408351243,1773481840351,-151.0,0.000117,2]
[408351244,1773481840360,-800.0,0.000118,2]
[408351245,1773481840376,-151.0,0.000118,2]
[408351246,1773481840386,-151.0,0.000118,2]
[408351247,1773481840396,-151.0,0.000118,2]
[408351248,1773481840406,-151.0,0.000118,2]
[408351249,1773481840415,-151.0,0.000118,2]
[408351250,1773481840424,-151.0,0.000118,2]
[408351251,1773481840433,-151.0,0.000118,2]
[408351252,1773481840445,-151.0,0.000118,2]
[408351253,1773481840454,-151.0,0.000118,2]
[408351254,1773481840464,-8785.15149195,0.00011835,2]
[408351255,1773481840473,-500.22772861,0.00011873,2]
[408351257,1773481840483,-502.38695018,0.00011873,2]
[408351258,1773481840492,-151.0,0.000119,2]
[408351259,1773481840501,-1569.8838975,0.00011953,2]
[408351260,1773481840512,-3139.7677952,0.00011953,2]
[408351261,1773481840521,-500.51602634,0.00011973,2]
[408351262,1773481840530,-151.0,0.00012,2]
[408351264,1773481840539,-151.0,0.00012,2]
[408351266,1773481840549,-151.0,0.00012,2]
[408351267,1773481840559,-151.0,0.00012,2]
[408351268,1773481840568,-151.0,0.00012,2]
[408351269,1773481840578,-151.0,0.00012,2]
[408351270,1773481840587,-151.0,0.00012,2]
[408351271,1773481840597,-151.0,0.00012,2]
[408351272,1773481840606,-151.0,0.00012,2]
[408351273,1773481840616,-151.0,0.00012,2]
[408351274,1773481840626,-151.0,0.00012,2]
[408351275,1773481840635,-151.0,0.00012,2]
[408351276,1773481840644,-151.0,0.00012,2]
[408351277,1773481840653,-151.0,0.00012,2]
[408351278,1773481840663,-151.0,0.00012,2]
[408351279,1773481840673,-151.0,0.00012,2]
[408351280,1773481840683,-151.0,0.00012,2]
[408351281,1773481840693,-151.0,0.00012,2]
[408351282,1773481840702,-151.0,0.00012,2]
[408351283,1773481840711,-151.0,0.00012,2]
[408351284,1773481840720,-15380.3736,0.00012055,2]
[408351285,1773481840730,-368.70881217,0.00012091,2]
[408351286,1773481840740,-600.0,0.00012191,2]
[408351287,1773481840749,-1394.0,0.00012708,2]
[408351288,1773481840758,-640.0,0.00012708,2]
[408351289,1773481840768,-2196.0,0.00012708,2]
[408351290,1773481840778,-465.359,0.00012708,2]
[408351291,1773481840788,-183.0,0.00012708,2]
[408351292,1773481840798,-609.44789941,0.000129,2]
[408351293,1773481840808,-720.0,0.0001341,2]
[408351294,1773481840817,-609.44789937,0.00013422,2]
[408351295,1773481840827,-156.0,0.00013699,2]
[408351296,1773481840836,-179.92802879,0.00013699,2]
[408351297,1773481840846,-1000.0,0.00013699,2]
[408351298,1773481840855,-501.22737406,0.00013699,2]
[408351299,1773481840865,-1000.0,0.00013699,2]
[408351300,1773481840874,-403.63912069,0.00014091,2]
[408351301,1773481840884,-787.0,0.000144,2]
[408351302,1773481840894,-500.0,0.00014719,2]
[408351303,1773481840904,-864.0,0.00014751,2]
[408351304,1773481840914,-270.83333333,0.00015,2]
[408351305,1773481840924,-273.57697,0.00015068,2]
[408351306,1773481840934,-11598.25080248,0.00015258,2]
[408351307,1773481840943,-172.0,0.00015616,3]
[408351308,1773481840953,-5000.0,0.0001564,2]
[408351309,1773481840962,-1392.0,0.00015708,2]
[408351310,1773481840972,-638.0,0.00015708,2]
[408351311,1773481840981,-2192.0,0.00015708,2]
[408351312,1773481840991,-437.0,0.00015708,2]
[408351313,1773481841000,-183.0,0.00015708,2]
[408351314,1773481841010,-609.44789937,0.00015743,2]
[408351316,1773481841020,-159.733966,0.00015867,2]
[408351318,1773481841030,-151.0,0.00015867,2]
[408351320,1773481841040,-151.0,0.0001601,2]
[408351322,1773481841049,-151.0,0.0001601,2]
[408351324,1773481841058,-151.0,0.0001601,2]
[408351326,1773481841067,-438.56942921,0.00016091,2]
[408351328,1773481841077,-1000.0,0.00016226,2]
[408351330,1773481841086,-1000.0,0.00016242,5]
[408351332,1773481841095,-1957.856,0.00016364,2]
[408351334,1773481841105,-537.6845,0.00016364,2]
[408351336,1773481841114,-2150.738,0.00016364,2]
[408351338,1773481841124,-151.0,0.00016415,2]
[408351340,1773481841133,-2030.296672,0.00016419,2]
[408351342,1773481841144,-200.0,0.00016438,2]
[408351344,1773481841154,-500.0,0.00016438,2]
[408351346,1773481841164,-604.18515625,0.00016438,2]
[408351348,1773481841173,-151.0,0.00016438,2]
[408351350,1773481841183,-151.0,0.00016438,2]
[408351352,1773481841192,-151.0,0.00016438,2]
[408351354,1773481841202,-151.0,0.00016438,2]
[408351356,1773481841211,-151.0,0.00016438,2]
[408351358,1773481841221,-2105.41764886,0.00016474,2]
[408351360,1773481841231,-2183.31810187,0.00016529,2]
[408351362,1773481841240,-2264.10087164,0.00016584,2]
[408351364,1773481841249,-2347.87260389,0.00016639,2]
[408351366,1773481841258,-875.06394854,0.00016694,2]
[408351368,1773481841268,-174.0,0.00016712,3]
[408351370,1773481841277,-557.5788265,0.00016912,2]
[408351373,1773481841287,-2230.315306,0.00016912,2]
[408351375,1773481841297,-578.20924308,0.0001746,2]
[408351377,1773481841306,-2312.83697232,0.0001746,2]
[408351379,1773481841316,-151.0,0.000175,2]
[408351381,1773481841324,-151.0,0.000175,2]
[408351382,1773481841334,-151.0,0.000175,2]
[408351385,1773481841344,-151.0,0.00017514,2]
[408351387,1773481841353,-151.0,0.00017514,2]
[408351389,1773481841364,-156.0,0.00017537,2]
[408351391,1773481841376,-280.0,0.00017733,2]
[408351393,1773481841385,-1000.0,0.00017848,2]
[408351394,1773481841394,-244.0,0.00017848,2]
[408351397,1773481841403,-359.0,0.00017881,2]
[408351399,1773481841412,-599.60298507,0.00018008,2]
[408351400,1773481841421,-2398.4119403,0.00018008,2]
[408351402,1773481841431,-609.44789937,0.00018065,2]
[408351404,1773481841442,-473.49973774,0.00018091,2]
[408351407,1773481841452,-176.0,0.00018356,3]
[408351408,1773481841462,-273.57697,0.00018493,2]
[408351410,1773481841471,-621.78829552,0.00018556,2]
[408351412,1773481841480,-2487.15318209,0.00018556,2]
[408351414,1773481841490,-437.0,0.00018708,2]
[408351416,1773481841500,-183.0,0.00018708,2]
[408351418,1773481841513,-5000.0,0.00018768,2]
[408351420,1773481841522,-1837.99105475,0.00018794,2]
[408351422,1773481841531,-2203.27767432,0.00018986,30]
[408351424,1773481841539,-800.0,0.0001903,2]
[408351426,1773481841549,-827.02049233,0.00019082,2]
[408351428,1773481841558,-151.0,0.000191,2]
[408351430,1773481841567,-151.0,0.000191,2]
[408351432,1773481841581,-151.0,0.000191,2]
[408351434,1773481841590,-151.0,0.000191,2]
[408351436,1773481841600,-151.0,0.000191,2]
[408351438,1773481841609,-151.0,0.000191,2]
[408351440,1773481841618,-151.0,0.000191,2]
[408351442,1773481841628,-151.0,0.000191,2]
[408351444,1773481841638,-151.0,0.000191,2]
[408351446,1773481841648,-151.0,0.000191,2]
[408351448,1773481841657,-644.79446246,0.00019104,2]
[408351450,1773481841666,-2579.17784983,0.00019104,2]
[408351452,1773481841676,-151.0,0.00019178,2]
[408351454,1773481841684,-151.0,0.00019178,2]
[408351456,1773481841694,-151.0,0.00019178,2]
[408351457,1773481841703,-151.0,0.00019178,2]
[408351459,1773481841713,-332.318118,0.00019178,2]
[408351461,1773481841723,-332.318118,0.00019178,2]
[408351463,1773481841732,-332.318118,0.00019178,2]
[408351465,1773481841742,-332.318118,0.00019178,2]
[408351467,1773481841754,-332.318118,0.00019178,2]
[408351469,1773481841763,-332.318118,0.00019178,2]
[408351471,1773481841772,-332.318118,0.00019178,2]
[408351472,1773481841780,-332.318118,0.00019178,2]
[408351473,1773481841789,-3142.283077,0.00019178,2]
[408351474,1773481841798,-3142.283077,0.00019178,2]
[408351475,1773481841807,-3142.283077,0.00019178,2]
[408351476,1773481841816,-3142.283077,0.00019178,2]
[408351477,1773481841825,-3142.283077,0.00019178,2]
[408351478,1773481841834,-3142.283077,0.00019178,2]
[408351479,1773481841843,-3142.283077,0.00019178,2]
[408351480,1773481841852,-3142.283077,0.00019178,2]
[408351481,1773481841861,-731.60077226,0.000192,2]
[408351482,1773481841870,-10157.0,0.00019413,5]
[408351483,1773481841879,-3671.0,0.00019413,5]
[408351484,1773481841888,-391.0,0.00019413,5]
[408351485,1773481841897,-265.26359,0.00019413,2]
[408351486,1773481841906,-151.0,0.00019413,2]
[408351487,1773481841915,-151.0,0.00019413,2]
[408351488,1773481841926,-151.0,0.00019413,2]
[408351489,1773481841935,-1000.0,0.000195,2]
[408351490,1773481841944,-1000.0,0.00019633,2]
[408351491,1773481841953,-492.0,0.00019633,2]
[408351492,1773481841962,-450.46886404,0.00019652,2]
[408351493,1773481841971,-1701.87633827,0.00019652,2]
[408351495,1773481841980,-622.0,0.00019726,2]
[408351497,1773481841989,-1155.816666,0.000198,5]
[408351499,1773481841998,-1000.0,0.0001982,5]
[408351501,1773481842007,-1000.0,0.0001984,5]
[408351503,1773481842017,-1000.0,0.0001986,5]
[408351505,1773481842026,-1000.0,0.0001988,5]
[408351507,1773481842035,-1000.0,0.000199,5]
[408351509,1773481842045,-7374.78365007,0.000199,2]
[408351511,1773481842054,-151.0,0.000199,2]
[408351513,1773481842063,-151.0,0.000199,2]
[408351515,1773481842072,-1000.0,0.0001992,5]
[408351517,1773481842082,-1000.0,0.0001994,5]
[408351519,1773481842091,-1000.0,0.0001996,5]
[408351521,1773481842100,-500.0,0.00019973,2]
[408351523,1773481842109,-1000.0,0.0001998,5]
[408351525,1773481842119,-34544.83738834,0.00019999,2]
[408351527,1773481842128,-37440.05706551,0.00019999,2]
[408351529,1773481842137,-159.960695,0.00019999,2]
[408351531,1773481842148,-151.0,0.00019999,2]
[408351533,1773481842156,-151.0,0.00019999,2]
[408351535,1773481842165,-266.25974,0.00019999,2]
[408351537,1773481842174,-332.318118,0.00019999,2]
[408351539,1773481842183,-332.318118,0.00019999,2]
[408351541,1773481842192,-332.318118,0.00019999,2]
[408351542,1773481842202,-332.318118,0.00019999,2]
[408351544,1773481842211,-3142.283077,0.00019999,2]
[408351546,1773481842220,-3142.283077,0.00019999,2]
[408351548,1773481842229,-3142.283077,0.00019999,2]
[408351550,1773481842238,-3142.283077,0.00019999,2]
[408351552,1773481842248,-151.0,0.00019999,2]
[408351554,1773481842257,-160.952633,0.00019999,2]
[408351556,1773481842266,-151.0,0.00019999,2]
[408351558,1773481842275,-151.0,0.00019999,2]
[408351560,1773481842285,-221.394517,0.00019999,2]
[408351562,1773481842293,-177.0,0.0002,3]
[408351564,1773481842302,-950494.31317928,0.0002,2]
[408351566,1773481842311,-63699.34506871,0.0002,2]
[408351568,1773481842327,-1522.28706012,0.0002,2]
[408351570,1773481842337,-938.73645402,0.0002,2]
[408351572,1773481842349,-52324.78290475,0.0002,2]
[408351575,1773481842361,-5000.0,0.0002,30]
[408351577,1773481842374,-1272.0,0.0002,5]
[408351578,1773481842383,-193.3703045,0.0002,7]
[408351580,1773481842392,-1267.47,0.0002,5]
[408351582,1773481842402,-7741.65630787,0.0002,5]
[408351584,1773481842414,-82165.74242951,0.0002,2]
[408351587,1773481842426,-2311.73621185,0.0002,2]
[408351589,1773481842438,-3690.16470939,0.0002,2]
[408351591,1773481842448,-2109.16837859,0.0002,2]
[408351609,1773481842610,-3924.9608205,0.00011583,2]
[408351610,1773481842622,-4534.14728986,0.00011583,2]
[408351612,1773481842631,-1889.79948755,0.0002,2]
[408351616,1773481842653,-671.77936835,0.0002,2]
[408351776,1773481846550,-324.453074,0.00019743,5]
[408351777,1773481846601,-453.546926,0.00019743,5]
[408351778,1773481846612,-1563.83098617,0.0002,2]
[408351779,1773481846656,-145238.6081619,0.0002,2]
[408351780,1773481846668,-1481.92119548,0.0002,2]
[408351810,1773482849120,-607.83229233,8.909e-05,2]
[408351814,1773483002562,161.19,2e-05,2]
[408351838,1773483031632,-876.86326639,8.82e-05,2]
[408351844,1773483031685,-1127.74715667,8.82e-05,2]
[408351868,1773483037704,-2995.38957694,8.82e-05,2]
[408351869,1773483037714,-545.0,8.909e-05,2]
[408351870,1773483037724,-150.0,8.954e-05,2]
[408351871,1773483037734,-300.0,8.999e-05,2]
[408351872,1773483037748,-17920.82922514,9e-05,2]
[408351873,1773483037765,-160.0,9.135e-05,2]
[408351874,1773483037780,-500.0,9.896e-05,2]
[408351875,1773483037789,-500.0,9.896e-05,2]
[408351876,1773483037799,-500.0,9.896e-05,2]
[408351877,1773483037809,-500.0,9.896e-05,2]
[408351878,1773483037818,-500.0,9.896e-05,2]
[408351879,1773483037828,-500.0,9.896e-05,2]
[408351880,1773483037837,-500.0,9.896e-05,2]
[408351881,1773483037846,-500.0,9.896e-05,2]
[408351882,1773483037855,-500.0,9.896e-05,2]
[408351883,1773483037865,-500.0,9.896e-05,2]
[408351884,1773483037874,-498.58564486,9.896e-05,2]
[408351885,1773483037884,-500.0,9.896e-05,2]
[408351886,1773483037895,-516.07525679,9.896e-05,2]
[408351887,1773483037907,-500.0,9.896e-05,2]
[408351888,1773483037916,-296.55149069,9.896e-05,2]
[408351889,1773483037926,-186.38369592,9.896e-05,2]
[408351890,1773483037935,-500.0,9.896e-05,2]
[408351891,1773483037944,-500.0,9.896e-05,2]
[408351892,1773483037953,-500.0,9.896e-05,2]
[408351893,1773483037962,-500.0,9.896e-05,2]
[408351894,1773483037972,-548.54535194,9.896e-05,2]
[408351895,1773483037981,-208.36943377,9.896e-05,2]
[408351896,1773483037992,-291.63056623,9.896e-05,2]
[408351897,1773483038002,-202.11976568,9.896e-05,2]
[408351898,1773483038012,-284.15945271,9.896e-05,2]
[408351899,1773483038021,-500.0,9.896e-05,2]
[408351900,1773483038031,-242.17896537,9.896e-05,2]
[408351901,1773483038042,-257.82103463,9.896e-05,2]
[408351902,1773483038051,-500.0,9.896e-05,2]
[408351903,1773483038061,-500.0,9.896e-05,2]
[408351904,1773483038070,-500.0,9.896e-05,2]
[408351905,1773483038079,-500.0,9.896e-05,2]
[408351906,1773483038088,-152.16686017,9.896e-05,2]
[408351907,1773483038098,-500.0,9.896e-05,2]
[408351908,1773483038107,-500.0,9.896e-05,2]
[408351909,1773483038116,-500.0,9.896e-05,2]
[408351910,1773483038125,-500.0,9.896e-05,2]
[408351911,1773483038134,-500.0,9.896e-05,2]
[408351912,1773483038143,-146.50718941,9.896e-05,2]
[408351913,1773483038160,-353.49281059,9.896e-05,2]
[408351914,1773483038169,-500.0,9.896e-05,2]
[408351915,1773483038179,-129864.66783614,9.897e-05,2]
[408351916,1773483038189,-2849.8060003,9.897e-05,2]
[408351939,1773483040157,-38524.07574324,9.897e-05,2]
[408352212,1773483042880,-695.7,9.798e-05,2]
[408352310,1773483045915,-356.65264037,9.798e-05,2]
[408352311,1773483046009,-3947.64735963,9.798e-05,2]
[408352312,1773483046018,-1396.00908485,9.897e-05,2]
[408352313,1773483046033,-20546.75023963,9.897e-05,2]
[408352321,1773484202644,161.19,2e-05,2]
[408352329,1773484231786,-479.07860894,9.129e-05,2]
[408352330,1773484231843,-2227.92527593,9.129e-05,2]
[408352331,1773484231853,-151.68835213,9.175e-05,2]
[408352332,1773484231863,-549.0,9.221e-05,2]
[408352333,1773484231873,-500.68629407,9.373e-05,2]
[408352334,1773484231883,-500.0,9.373e-05,2]
[408352335,1773484231893,-471.94007784,9.373e-05,2]
[408352336,1773484231905,-28.05992216,9.373e-05,2]
[408352337,1773484231914,-500.69669512,9.373e-05,2]
[408352338,1773484231923,-500.0,9.373e-05,2]
[408352339,1773484231935,-500.0,9.373e-05,2]
[408352340,1773484231945,-500.0,9.373e-05,2]
[408352341,1773484231954,-287.0,9.399e-05,2]
[408352342,1773484231964,-500.0,9.399e-05,2]
[408352343,1773484231974,-500.0,9.399e-05,2]
[408352344,1773484231983,-500.0,9.399e-05,2]
[408352345,1773484231993,-7413.74430983,9.4e-05,2]
[408352377,1773484237930,-500.0,9.399e-05,2]
[408352379,1773484237940,-500.0,9.399e-05,2]
[408352381,1773484237950,-232.8728551,9.399e-05,2]
[408352383,1773484237960,-500.0,9.399e-05,2]
[408352385,1773484237970,-500.0,9.399e-05,2]
[408352387,1773484237981,-518.68692602,9.399e-05,2]
[408352389,1773484237991,-500.0,9.399e-05,2]
[408352391,1773484238000,-500.0,9.399e-05,2]
[408352393,1773484238010,-500.0,9.399e-05,2]
[408352395,1773484238019,-500.0,9.399e-05,2]
[408352398,1773484238029,-355.79108508,9.399e-05,2]
[408352400,1773484238039,-420.46216141,9.399e-05,2]
[408352402,1773484238049,-183.57409557,9.399e-05,2]
[408352404,1773484238059,-137243.42269207,9.4e-05,2]
[408352406,1773484238070,-2716.23165476,9.4e-05,2]
[408352408,1773484238081,-6020.13623295,9.4e-05,2]
[408352411,1773484238100,-8911.31155355,9.4e-05,2]
[408352621,1773484240352,-523.75236559,9.4e-05,2]